bitfinex/quotes_SOLUSD_20220101
["timestamp","ask_amount","ask_price","bid_price","bid_amount"]
[1641074152976,131.93761746,176.54,176.41,1.42669368]
[1641074152977,1.26164903,176.51,176.41,1.42669368]
[1641074153173,1.26164903,176.51,176.42,8.33]
[1641074153573,1.26164903,176.53,176.42,8.59]
[1641074154374,8.4994,176.52,176.42,17.0899]
[1641074154576,1.26164903,176.53,176.42,17.0899]
[1641074154775,1.26164903,176.53,176.42,18.51659368]
[1641074155178,104.86436649,176.54,176.42,18.51659368]
[1641074155377,104.86436649,176.54,176.42,17.0899]
[1641074155578,8.4992,176.53,176.42,17.0899]
[1641074155876,8.4992,176.53,176.43,1.42669368]
[1641074156077,8.4992,176.53,176.44,8.33]
[1641074156375,9.76084903,176.53,176.44,8.33]
[1641074156576,9.76084903,176.53,176.44,8.59]
[1641074156977,8.4992,176.53,176.44,8.59]
[1641074157377,88.02164903,176.54,176.45,1.42669368]
[1641074157678,79.52314903,176.54,176.46,8.33]
[1641074157879,1.26164903,176.54,176.46,8.33]
[1641074158081,1.26164903,176.54,176.47,1.42669368]
[1641074158280,76.982,176.55,176.48,8.33]
[1641074158480,8.4981,176.55,176.48,8.59]
[1641074158980,1.26164903,176.54,176.44,9.75669368]
[1641074159184,1.26164903,176.54,176.44,1.42669368]
[1641074159380,1.26164903,176.54,176.42,8.33]
[1641074159580,1.26164903,176.51,176.42,8.33]
[1641074160380,1.26164903,176.51,176.42,8.59]
[1641074160685,8.501,176.49,176.42,8.59]
[1641074160882,39.1462419,176.49,176.42,8.33]
[1641074161381,8.501,176.49,176.42,8.33]
[1641074161582,1.26164903,176.5,176.42,8.33]
[1641074161785,1.26164903,176.5,176.42,16.8298]
[1641074161982,1.26164903,176.47,176.42,16.8298]
[1641074162485,1.26164903,176.49,176.42,17.0898]
[1641074163084,1.26164903,176.51,176.42,17.0898]
[1641074163685,1.26164903,176.5,176.42,17.0898]
[1641074164888,1.26164903,176.5,176.42,73.1198]
[1641074165087,1.26164903,176.5,176.42,178.67649368]
[1641074165689,1.26164903,176.53,176.42,178.67649368]
[1641074166489,1.26164903,176.55,176.42,178.67649368]
[1641074167088,26.26444369,176.56,176.42,178.67649368]
[1641074168395,80.1934,176.6,176.42,178.67649368]
[1641074168591,80.1934,176.6,176.42,262.67722148]
[1641074168992,80.1934,176.6,176.45,56.03]
[1641074169192,80.1934,176.6,176.46,72.8565]
[1641074169393,30.47590361,176.59,176.46,72.8565]
[1641074169594,30.47590361,176.59,176.46,73.1165]
[1641074170594,8.4967,176.58,176.46,73.1165]
[1641074171195,30.47590361,176.59,176.47,9.92249368]
[1641074171401,30.47590361,176.59,176.48,112.46]
[1641074171598,78.9631,176.6,176.48,112.72]
[1641074171795,78.9631,176.6,176.48,170.17669368]
[1641074171996,78.9631,176.6,176.49,1.42669368]
[1641074172197,1.26164903,176.64,176.5,8.33]
[1641074172397,1.26164903,176.64,176.51,8.4941]
[1641074172598,153.75044903,176.65,176.52,8.33]
[1641074172797,40.27944485,176.63,176.52,8.33]
[1641074172996,40.27944485,176.63,176.52,8.59]
[1641074173398,1.26164903,176.6,176.52,17.0834]
[1641074173599,1.26164903,176.6,176.52,73.1134]
[1641074173998,1.26164903,176.61,176.52,73.1134]
[1641074174598,1.26164903,176.6,176.52,73.1134]
[1641074175198,1.26164903,176.61,176.52,73.1134]
[1641074176499,1.26164903,176.6,176.52,73.1134]
[1641074176900,1.26164903,176.6,176.52,8.33]
[1641074177100,1.26164903,176.6,176.48,8.33]
[1641074177301,1.76164903,176.6,176.48,8.33]
[1641074177500,1.26164903,176.6,176.48,8.33]
[1641074177701,1.26164903,176.56,176.48,8.33]
[1641074177902,26.51120214,176.56,176.48,8.33]
[1641074178100,1.26164903,176.56,176.48,8.33]
[1641074178502,1.26164903,176.55,176.48,8.33]
[1641074179102,26.59820183,176.56,176.48,8.59]
[1641074180305,1.26164903,176.56,176.48,8.59]
[1641074182507,1.26164903,176.57,176.48,8.59]
[1641074182904,1.26164903,176.57,176.48,10.01669368]
[1641074183505,1.26164903,176.56,176.48,10.01669368]
[1641074183907,1.26164903,176.56,176.48,18.51219368]
[1641074184108,1.26164903,176.57,176.48,18.25219368]
[1641074184307,1.26164903,176.57,176.48,8.33]
[1641074184808,9.75854903,176.57,176.48,8.33]
[1641074185408,1.26164903,176.56,176.48,8.33]
[1641074185913,9.75964903,176.55,176.48,8.33]
[1641074186431,9.75964903,176.55,176.44,8.33]
[1641074186830,9.75964903,176.55,176.44,8.59]
[1641074187632,1.26164903,176.53,176.44,8.59]
[1641074188231,9.76014903,176.54,176.44,8.59]
[1641074188833,1.26164903,176.53,176.44,8.59]
[1641074189136,9.76074903,176.53,176.44,8.59]
[1641074189333,1.26164903,176.52,176.44,8.59]
[1641074190134,1.26164903,176.53,176.44,8.59]
[1641074190738,1.26164903,176.54,176.44,8.59]
[1641074191138,1.26164903,176.52,176.44,8.59]
[1641074191338,0.76164903,176.52,176.44,8.59]
[1641074192336,4.3138041,176.57,176.44,8.33]
[1641074192835,4.8138041,176.57,176.44,8.33]
[1641074193236,4.3138041,176.57,176.44,8.33]
[1641074193639,1.2989,176.57,176.44,8.33]
[1641074193835,8.4974,176.56,176.44,8.33]
[1641074194036,8.4974,176.56,176.44,8.59]
[1641074194637,8.4974,176.56,176.44,17.0877]
[1641074195535,8.4974,176.56,176.44,8.59]
[1641074197143,11.5123041,176.56,176.44,8.59]
[1641074197541,11.5123041,176.56,176.44,8.33]
[1641074197741,8.4974,176.56,176.44,8.33]
[1641074198843,8.4974,176.56,176.44,8.59]
[1641074200545,485.4348421,176.45,176.44,8.59]
[1641074200746,471.0182421,176.45,176.44,8.59]
[1641074201151,1.2989,176.57,176.44,17.0878]
[1641074201548,24.01037217,176.58,176.46,104.13]
[1641074201750,24.01037217,176.58,176.47,8.33]
[1641074201948,92.9,176.6,176.47,8.33]
[1641074202148,92.9,176.6,176.47,8.59]
[1641074202350,158.4902041,176.63,176.52,8.4944]
[1641074202547,158.4902041,176.63,176.53,8.33]
[1641074202947,23.61421923,176.62,176.53,8.59]
[1641074203747,32.10931923,176.62,176.53,17.0848]
[1641074205148,32.10931923,176.62,176.53,8.59]
[1641074206152,33.53601291,176.62,176.53,8.33]
[1641074206357,34.29601291,176.62,176.49,8.33]
[1641074207151,1.2328,176.61,176.49,8.33]
[1641074207352,8.4985,176.55,176.49,8.33]
[1641074207551,24.4578679,176.54,176.49,8.33]
[1641074208352,3.0149041,176.56,176.49,8.33]
[1641074208551,11.5128041,176.56,176.49,8.33]
[1641074208952,8.4979,176.56,176.49,8.33]
[1641074209353,28.52010408,176.55,176.49,8.33]
[1641074209755,37.01840408,176.55,176.49,8.33]
[1641074212657,37.01840408,176.55,176.45,8.33]
[1641074213057,40.03330818,176.55,176.45,8.33]
[1641074213659,9.45864879,176.54,176.45,8.33]
[1641074213859,8.4997,176.52,176.45,8.33]
[1641074214858,4.3316041,176.55,176.45,8.33]
[1641074215061,4.3316041,176.55,176.45,16.8285]
[1641074215258,4.3316041,176.55,176.45,18.25519368]
[1641074215660,79.7198041,176.6,176.45,18.25519368]
[1641074215862,80.9594041,176.6,176.45,18.25519368]
[1641074216059,80.9594041,176.6,176.45,74.54519368]
[1641074216659,89.4551041,176.6,176.45,74.54519368]
[1641074216859,86.4402,176.6,176.45,74.54519368]
[1641074217562,89.4551041,176.6,176.45,74.54519368]
[1641074217761,89.4551041,176.6,176.45,18.51519368]
[1641074217960,89.4551041,176.6,176.45,17.0885]
[1641074218161,9.45660366,176.59,176.45,17.0885]
[1641074218563,446.56445063,176.5,176.45,17.0885]
[1641074219363,446.56445063,176.5,176.45,8.59]
[1641074219763,446.56445063,176.5,176.45,8.33]
[1641074220689,446.56445063,176.5,176.4,8.33]
[1641074221691,446.56445063,176.5,176.4,16.8306]
[1641074222788,446.56445063,176.5,176.4,72.8606]
[1641074223289,446.56445063,176.5,176.41,105.55669368]
[1641074223488,446.56445063,176.5,176.45,8.4962]
[1641074223688,446.56445063,176.5,176.46,8.33]
[1641074224089,1.293,176.58,176.46,8.59]
[1641074224290,1.293,176.58,176.46,10.01669368]
[1641074224490,1.293,176.58,176.52,8.4953]
[1641074224691,75.7093041,176.6,176.52,8.4953]
[1641074224893,75.7093041,176.6,176.53,8.33]
[1641074225099,3.0149041,176.61,176.53,8.59]
[1641074225492,3.0149041,176.63,176.53,8.33]
[1641074226192,3.0149041,176.63,176.53,8.59]
[1641074226393,3.0149041,176.63,176.53,8.33]
[1641074226595,9.45521631,176.63,176.53,8.33]
[1641074226994,9.45521631,176.63,176.53,8.59]
[1641074227194,6.44031221,176.63,176.53,10.01669368]
[1641074227394,6.44031221,176.63,176.54,28.3065]
[1641074227595,3.0149041,176.65,176.58,8.4922]
[1641074227797,3.0149041,176.65,176.59,8.33]
[1641074227996,3.0149041,176.65,176.6,8.33]
[1641074228399,3.0149041,176.68,176.6,8.59]
[1641074228595,3.0149041,176.68,176.64,8.4883]
[1641074228796,3.0149041,176.68,176.64,16.8183]
[1641074228998,3.0149041,176.69,176.64,16.8183]
[1641074229599,3.0149041,176.7,176.64,16.8183]
[1641074230102,3.0149041,176.7,176.61,16.8203]
[1641074230399,3.0149041,176.7,176.61,8.33]
[1641074230701,11.5059041,176.7,176.61,8.33]
[1641074231101,11.7659041,176.7,176.57,8.33]
[1641074231301,12.2659041,176.7,176.57,8.33]
[1641074231502,460.53141083,176.62,176.57,8.59]
[1641074231703,489.10718571,176.62,176.57,8.59]
[1641074235208,489.10718571,176.62,176.57,8.33]
[1641074237015,489.36718571,176.62,176.52,8.33]
[1641074237813,489.86718571,176.62,176.48,8.33]
[1641074238010,8.4973,176.56,176.48,8.33]
[1641074238210,24.70028044,176.55,176.48,8.33]
[1641074239842,33.19808044,176.55,176.48,8.33]
[1641074240639,33.19808044,176.55,176.45,8.33]
[1641074240838,77.792,176.54,176.46,8.33]
[1641074241040,8.7584,176.54,176.46,8.33]
[1641074241239,8.4984,176.54,176.46,8.33]
[1641074241640,8.7584,176.54,176.46,8.33]
[1641074242239,8.7584,176.54,176.43,8.33]
[1641074243541,9.2584,176.54,176.43,8.33]
[1641074243741,1.42669368,176.53,176.38,8.33]
[1641074243941,1.42669368,176.53,176.33,8.33]
[1641074243942,87.96139368,176.53,176.33,8.33]
[1641074244144,8.5041,176.43,176.33,8.33]
[1641074244343,503.03617395,176.41,176.33,8.33]
[1641074244543,503.29617395,176.41,176.33,8.33]
[1641074245143,511.54107395,176.41,176.29,16.8362]
[1641074245343,512.30107395,176.41,176.29,8.33]
[1641074245745,1.42669368,176.4,176.26,8.33]
[1641074245942,0.5,176.4,176.26,8.33]
[1641074246145,0.76,176.4,176.26,8.33]
[1641074246343,8.5086,176.33,176.26,8.33]
[1641074246544,506.49173003,176.3,176.22,8.33]
[1641074247544,506.75173003,176.3,176.22,8.33]
[1641074247744,515.26193003,176.3,176.22,8.33]
[1641074248646,515.26193003,176.3,176.15,104.13]
[1641074248647,515.26193003,176.3,176.18,7.83]
[1641074248847,515.26193003,176.3,176.18,7.33]
[1641074250149,515.00193003,176.3,176.18,15.8427]
[1641074250346,388.31099071,176.21,176.18,15.8427]
[1641074250546,6.06210272,176.2,176.18,15.8427]
[1641074250948,31.54843156,176.32,176.18,15.8427]
[1641074251148,31.54843156,176.32,176.18,16.1027]
[1641074251550,8.5086,176.34,176.18,16.1027]
[1641074251752,8.5086,176.34,176.18,121.65939368]
[1641074252551,33.66871621,176.33,176.18,120.2327]
[1641074252752,25.15991621,176.33,176.18,120.2327]
[1641074252951,1.2557,176.37,176.19,104.13]
[1641074253151,1.2557,176.37,176.27,8.5075]
[1641074253354,84.8690041,176.4,176.27,8.33]
[1641074253552,8.5071,176.37,176.27,8.59]
[1641074253952,24.68931644,176.37,176.27,8.59]
[1641074254152,1.2943,176.4,176.33,8.5049]
[1641074254355,4.2676041,176.42,176.33,8.5049]
[1641074254554,430.79691969,176.36,176.27,8.33]
[1641074255157,23.0255703,176.35,176.27,8.33]
[1641074255359,23.0255703,176.35,176.29,8.5069]
[1641074257858,23.0255703,176.35,176.29,8.7669]
[1641074258057,430.79691969,176.36,176.3,8.33]
[1641074258263,430.79691969,176.36,176.31,8.5053]
[1641074258661,430.79691969,176.36,176.32,8.33]
[1641074260061,430.79691969,176.36,176.32,16.8346]
[1641074260960,430.79691969,176.36,176.32,17.0946]
[1641074262562,430.79691969,176.36,176.32,16.8346]
[1641074262563,457.99949513,176.36,176.32,16.8346]
[1641074262762,457.99949513,176.36,176.21,104.13]
[1641074262962,457.99949513,176.36,176.22,8.33]
[1641074263768,457.99949513,176.36,176.28,8.5067]
[1641074263966,457.99949513,176.36,176.24,8.33]
[1641074264364,457.99949513,176.36,176.24,8.59]
[1641074265665,457.99949513,176.36,176.27,8.5068]
[1641074266269,457.99949513,176.36,176.27,0.0068]
[1641074266468,8.33,176.35,176.09,2.5021]
[1641074266668,8.33,176.35,176.19,8.5098]
[1641074266868,1.42669368,176.34,176.15,8.33]
[1641074267070,8.33,176.33,176.15,8.33]
[1641074267471,10.51669368,176.33,176.15,8.33]
[1641074267870,2.5108,176.32,176.15,8.33]
[1641074268071,8.5107,176.29,176.17,8.5101]
[1641074268274,30.94883679,176.28,176.17,16.8401]
[1641074268469,398.76732449,176.21,176.17,16.8401]
[1641074269071,398.76732449,176.21,176.17,17.1001]
[1641074270075,398.76732449,176.21,176.17,16.6001]
[1641074272797,398.76732449,176.21,176.17,16.3401]
[1641074274498,398.76732449,176.21,176.17,16.6001]
[1641074276300,398.76732449,176.21,176.17,16.3401]
[1641074277803,398.76732449,176.21,176.17,16.6001]
[1641074280209,23.17459794,176.2,176.17,16.3401]
[1641074280408,23.17459794,176.2,176.17,8.33]
[1641074281812,6.06210272,176.19,176.17,8.33]
[1641074282811,6.06210272,176.19,176.17,8.59]
[1641074285514,398.76732449,176.21,176.17,8.59]
[1641074287312,398.76732449,176.21,176.17,17.1006]
[1641074289520,151.8645,176.31,176.17,17.1006]
[1641074289714,150.6172,176.31,176.17,17.1006]
[1641074290113,25.73932684,176.3,176.17,17.1006]
[1641074291313,342.28307152,176.25,176.17,17.1006]
[1641074295318,342.28307152,176.25,176.18,104.13]
[1641074295519,342.28307152,176.25,176.23,8.5067]
[1641074295721,342.28307152,176.25,176.24,8.33]
[1641074298221,348.34517424,176.25,176.24,8.33]
[1641074298920,342.28307152,176.25,176.24,8.33]
[1641074299521,348.34517424,176.25,176.19,8.33]
[1641074299723,342.28307152,176.25,176.19,8.33]
[1641074301024,342.28307152,176.25,176.19,8.59]
[1641074301224,342.28307152,176.25,176.24,104.13]
[1641074301424,3.0149041,176.36,176.24,112.46]
[1641074301721,78.4219,176.4,176.24,112.72]
[1641074301722,80.5778041,176.37,176.24,112.72]
[1641074302123,27.71751528,176.36,176.24,121.2254]
[1641074303425,458.93324239,176.32,176.24,121.2254]
[1641074306234,458.93324239,176.32,176.24,122.65209368]
[1641074306730,458.93324239,176.32,176.26,104.13]
[1641074306928,458.93324239,176.32,176.27,8.33]
[1641074307128,27.71751528,176.36,176.29,8.5039]
[1641074307331,27.71751528,176.36,176.3,8.33]
[1641074307531,27.71751528,176.36,176.31,8.33]
[1641074307933,1.3311,176.39,176.31,8.33]
[1641074308535,1.3311,176.39,176.31,8.59]
[1641074308934,23.10056737,176.38,176.31,8.59]
[1641074309334,363.68238903,176.34,176.31,8.59]
[1641074309735,95.27668903,176.34,176.33,104.13]
[1641074309937,95.27668903,176.34,176.33,112.46]
[1641074310134,3.0149041,176.44,176.33,114.14669368]
[1641074310337,75.7849,176.47,176.38,104.13]
[1641074310536,4.7762811,176.48,176.39,8.33]
[1641074310737,33.03310332,176.48,176.41,8.499]
[1641074310937,33.03310332,176.48,176.42,8.33]
[1641074311138,28.25682222,176.48,176.43,8.33]
[1641074311342,28.25682222,176.48,176.44,3.33]
[1641074311536,28.25682222,176.48,176.38,104.39]
[1641074311736,28.25682222,176.48,176.39,8.33]
[1641074312136,28.25682222,176.48,176.42,8.4992]
[1641074312338,28.25682222,176.48,176.43,8.33]
[1641074315168,28.25682222,176.48,176.39,0.26]
[1641074315364,1.57650365,176.47,176.33,104.13]
[1641074315564,1.83650365,176.47,176.33,104.13]
[1641074315764,2.33650365,176.47,176.33,104.13]
[1641074315964,1.57650365,176.43,176.25,176.4946]
[1641074316166,1.57650365,176.43,176.25,104.13]
[1641074316363,1.83650365,176.43,176.26,8.33]
[1641074316563,10.34020365,176.43,176.26,36.676]
[1641074316764,30.01324214,176.39,176.26,36.676]
[1641074316965,30.27324214,176.39,176.26,36.676]
[1641074317365,29.77324214,176.39,176.26,36.676]
[1641074317566,1.57650365,176.38,176.3,8.5044]
[1641074317768,1.57650365,176.38,176.31,8.33]
[1641074318167,31.34974579,176.39,176.31,8.33]
[1641074318869,1.57650365,176.38,176.31,8.33]
[1641074319268,1.57650365,176.38,176.31,16.834]
[1641074319469,1.57650365,176.38,176.31,17.094]
[1641074320273,1.57650365,176.41,176.31,17.094]
[1641074320471,29.1285502,176.4,176.31,17.094]
[1641074320672,29.1285502,176.4,176.31,16.834]
[1641074320870,30.70505385,176.4,176.31,8.33]
[1641074321275,1.57650365,176.39,176.31,8.33]
[1641074321472,10.08190365,176.39,176.31,8.33]
[1641074321671,10.58190365,176.39,176.27,8.33]
[1641074321974,1.57650365,176.38,176.27,8.33]
[1641074322370,1.83650365,176.38,176.27,8.33]
[1641074322572,8.5068,176.36,176.27,8.33]
[1641074322773,32.53798881,176.36,176.27,8.33]
[1641074322974,32.79798881,176.36,176.27,8.33]
[1641074323471,34.37449246,176.36,176.27,8.33]
[1641074324272,34.11449246,176.36,176.27,8.33]
[1641074324674,25.60769246,176.36,176.27,8.33]
[1641074325074,1.57650365,176.36,176.27,8.33]
[1641074325874,1.57650365,176.36,176.27,17.0958]
[1641074326475,1.57650365,176.37,176.27,17.0958]
[1641074327676,1.57650365,176.38,176.27,17.0958]
[1641074331580,1.57650365,176.37,176.27,17.0958]
[1641074331979,1.57650365,176.37,176.27,18.52249368]
[1641074332180,1.57650365,176.39,176.27,18.52249368]
[1641074332581,1.57650365,176.39,176.27,17.0958]
[1641074332781,1.57650365,176.39,176.27,18.52249368]
[1641074333782,1.2908,176.4,176.27,18.52249368]
[1641074333986,1.5508,176.4,176.27,16.8358]
[1641074334484,1.57650365,176.39,176.27,16.8358]
[1641074334684,1.57650365,176.39,176.27,8.33]
[1641074334887,10.84180365,176.39,176.27,8.33]
[1641074335188,1.57650365,176.37,176.27,8.33]
[1641074335387,26.69544849,176.36,176.27,8.33]
[1641074335590,26.95544849,176.36,176.27,8.33]
[1641074335787,8.5076,176.35,176.27,8.33]
[1641074335988,8.7676,176.35,176.27,8.33]
[1641074337190,8.5076,176.35,176.27,8.33]
[1641074337593,36.77875214,176.36,176.27,8.33]
[1641074337991,28.27195214,176.36,176.27,8.33]
[1641074338592,26.69544849,176.36,176.27,8.33]
[1641074339593,10.08280365,176.37,176.27,8.33]
[1641074339794,1.57650365,176.37,176.27,8.59]
[1641074340997,75.7041,176.39,176.27,8.59]
[1641074340998,1.57650365,176.38,176.27,8.59]
[1641074341696,1.57650365,176.38,176.27,17.0959]
[1641074342298,1.57650365,176.38,176.28,1.42669368]
[1641074342498,1.57650365,176.38,176.29,8.33]
[1641074343001,2.86730365,176.4,176.29,8.59]
[1641074343201,2.86730365,176.4,176.33,8.503]
[1641074343404,2.86730365,176.4,176.29,8.59]
[1641074345003,1.57650365,176.39,176.29,8.59]
[1641074345403,1.2908,176.4,176.29,8.33]
[1641074345404,2.86730365,176.4,176.29,8.33]
[1641074345605,0.26,176.39,176.25,8.33]
[1641074346007,3.62730365,176.4,176.25,8.33]
[1641074346207,22.62166888,176.35,176.25,8.33]
[1641074346608,22.88166888,176.35,176.25,8.33]
[1641074347009,1.57650365,176.35,176.25,8.59]
[1641074347429,1.57650365,176.35,176.25,17.0968]
[1641074347829,1.57650365,176.38,176.25,17.0968]
[1641074348030,24.64641665,176.37,176.25,17.0968]
[1641074348431,25.14641665,176.37,176.25,17.0968]
[1641074350337,24.64641665,176.37,176.25,18.52349368]
[1641074353144,24.64641665,176.37,176.25,16.8368]
[1641074353342,25.40641665,176.37,176.25,8.33]
[1641074353541,26.83311033,176.37,176.25,8.33]
[1641074353743,26.83311033,176.37,176.2,8.33]
[1641074353940,89.83750365,176.36,176.2,8.33]
[1641074354141,8.5099,176.3,176.2,8.33]
[1641074354341,1.57650365,176.36,176.29,104.13]
[1641074354542,1.57650365,176.36,176.3,112.46]
[1641074354741,1.57650365,176.32,176.3,113.88669368]
[1641074355341,3.0149041,176.36,176.3,142.22859368]
[1641074355543,3.65e-06,176.45,176.36,8.5019]
[1641074355942,3.65e-06,176.45,176.35,8.33]
[1641074356143,0.5,176.49,176.35,8.59]
[1641074356544,27.16421835,176.48,176.35,8.59]
[1641074356744,375.63326579,176.47,176.35,17.0926]
[1641074358145,375.89326579,176.47,176.35,17.0926]
[1641074358848,376.39326579,176.47,176.35,8.59]
[1641074360253,376.39326579,176.47,176.35,17.0927]
[1641074360853,375.89326579,176.47,176.35,17.0927]
[1641074363459,376.39326579,176.47,176.35,17.0927]
[1641074364158,375.63326579,176.47,176.35,17.0927]
[1641074364558,375.13326579,176.47,176.35,17.0927]
[1641074365161,366.63116579,176.47,176.35,16.51939368]
[1641074365364,366.63116579,176.47,176.35,187.95929348]
[1641074365560,366.63116579,176.47,176.37,104.13]
[1641074365762,366.63116579,176.47,176.42,8.4994]
[1641074365961,366.63116579,176.47,176.43,8.33]
[1641074366385,366.63116579,176.47,176.43,10.01669368]
[1641074366684,29.00120006,176.54,176.43,10.01669368]
[1641074366882,3.0149041,176.56,176.43,18.51559368]
[1641074367280,1.2888,176.58,176.43,18.51559368]
[1641074367281,8.4985,176.54,176.43,18.51559368]
[1641074367680,3.0149041,176.57,176.43,18.51559368]
[1641074368081,28.24296765,176.56,176.43,18.51559368]
[1641074368682,8.4976,176.55,176.43,18.51559368]
[1641074370986,8.4976,176.55,176.44,104.13]
[1641074371184,8.4976,176.55,176.46,8.4979]
[1641074371384,8.4976,176.55,176.47,8.33]
[1641074371585,8.4976,176.55,176.47,8.59]
[1641074372286,8.4976,176.55,176.47,17.0875]
[1641074373890,36.74016765,176.56,176.47,18.51419368]
[1641074376688,36.74016765,176.56,176.47,18.25419368]
[1641074376991,37.00016765,176.56,176.47,8.33]
[1641074377388,36.74016765,176.56,176.47,8.33]
[1641074378390,36.74016765,176.56,176.47,8.59]
[1641074379991,37.50016765,176.56,176.47,8.33]
[1641074380593,37.24016765,176.56,176.47,8.33]
[1641074380794,37.50016765,176.56,176.47,8.33]
[1641074381393,37.24016765,176.56,176.47,8.33]
[1641074381595,37.00016765,176.56,176.47,8.33]
[1641074382493,37.50016765,176.56,176.47,8.33]
[1641074384297,37.50016765,176.56,176.43,8.33]
[1641074384924,37.50016765,176.56,176.39,8.33]
[1641074385099,81.0896,176.55,176.39,8.33]
[1641074385298,22.41901507,176.51,176.39,8.33]
[1641074385498,22.67901507,176.51,176.39,8.33]
[1641074386300,23.17901507,176.51,176.39,8.33]
[1641074386701,26.51414266,176.46,176.39,8.33]
[1641074387100,26.77414266,176.46,176.34,8.33]
[1641074387902,27.27414266,176.46,176.34,8.33]
[1641074388106,8.5031,176.44,176.34,16.8333]
[1641074388602,415.82880508,176.44,176.34,16.8333]
[1641074389305,416.32880508,176.44,176.34,16.8333]
[1641074392710,407.06570508,176.44,176.34,17.0933]
[1641074393108,26.51414266,176.46,176.34,17.0933]
[1641074393509,26.51414266,176.46,176.34,16.8333]
[1641074393717,35.01654266,176.46,176.34,8.5033]
[1641074393912,35.01654266,176.46,176.34,16.8333]
[1641074394112,35.27654266,176.46,176.34,16.8333]
[1641074396914,35.77654266,176.46,176.34,16.8333]
[1641074397114,35.77654266,176.46,176.27,1.42669368]
[1641074397316,81.33,176.45,176.27,8.33]
[1641074397516,81.59,176.45,176.27,8.33]
[1641074397718,82.09,176.45,176.27,8.33]
[1641074397916,88.189,176.45,176.26,8.5063]
[1641074398217,87.929,176.45,176.27,8.33]
[1641074398417,22.98843392,176.38,176.27,8.33]
[1641074398816,22.98843392,176.38,176.29,8.5047]
[1641074399022,1.2821,176.44,176.29,8.5047]
[1641074399023,1.2821,176.44,176.29,17.0947]
[1641074399219,171.1295,176.48,176.29,17.0947]
[1641074399420,8.5021,176.47,176.3,2.75369368]
[1641074399619,172.3729,176.48,176.31,8.33]
[1641074399819,172.3729,176.48,176.34,8.5026]
[1641074400039,30.05523571,176.47,176.35,8.33]
[1641074400445,8.503,176.45,176.35,8.59]
[1641074401044,8.763,176.45,176.35,8.59]
[1641074402248,8.5021,176.46,176.35,10.01669368]
[1641074402548,30.05523571,176.47,176.35,10.01669368]
[1641074402948,30.05523571,176.47,176.35,8.59]
[1641074403148,30.05523571,176.47,176.35,10.01669368]
[1641074403457,30.05523571,176.47,176.36,104.13]
[1641074403649,30.05523571,176.47,176.37,8.33]
[1641074403848,30.05523571,176.47,176.37,9.75669368]
[1641074404048,1.2529,176.53,176.38,1.42669368]
[1641074404248,1.2529,176.53,176.39,8.33]
[1641074404549,1.2529,176.53,176.39,8.59]
[1641074404748,1.2529,176.53,176.39,10.01669368]
[1641074405148,31.80553689,176.52,176.39,10.01669368]
[1641074405548,31.80553689,176.52,176.4,104.13]
[1641074405747,31.80553689,176.52,176.41,8.33]
[1641074405948,31.80553689,176.52,176.41,9.75669368]
[1641074406148,31.80553689,176.52,176.42,1.42669368]
[1641074406348,31.80553689,176.52,176.43,8.33]
[1641074406548,31.80553689,176.52,176.43,8.59]
[1641074406948,31.80553689,176.52,176.43,17.0883]
[1641074407549,31.80553689,176.52,176.43,8.33]
[1641074408648,40.30473689,176.52,176.43,8.33]
[1641074408852,31.69053689,176.52,176.43,8.33]
[1641074409062,3.0149041,176.57,176.43,8.59]
[1641074409254,3.0149041,176.57,176.43,114.14669368]
[1641074409454,31.3440041,176.58,176.43,114.14669368]
[1641074409656,8.4978,176.55,176.43,122.64509368]
[1641074410155,24.35009852,176.55,176.43,122.64509368]
[1641074410355,24.35009852,176.55,176.43,121.2184]